[Event "SVK Extraliga 2019-20"]
[Site "Slovakia"]
[Date "2019.10.20"]
[Round "2.4"]
[White "Motuz, Karol"]
[Black "Lintner, Igor"]
[Result "1-0"]
[ECO "E00"]
[WhiteElo "2359"]
[BlackElo "2187"]
[Annotator "NA"]
[PlyCount "83"]
[EventDate "2019.10.19"]
[EventType "team-tourn"]
[EventCountry "SVK"]
[SourceTitle "playchess.com"]
[Source "ChessBase"]
[SourceQuality "1"]
[WhiteTeam "Dubnica"]
[BlackTeam "Osuske"]
[TimeControl "40/5400+30:1800+30"]

1. d4 {[%emt 0:00:00]} e6 {[%emt 0:00:00]} 2. c4 {[%emt 0:00:28]} Bb4+ {[%emt 0:00:00]} 3. Bd2 {[%emt 0:00:39]} a5 {[%emt 0:00:00]} 4. a3 {[%emt 0:01:24]} Be7 {[%emt 0:01:48]} 5. Nc3 {[%emt 0:04:42]} d5 {[%emt 0:00:59]} 6. Nf3 {[%emt 0:00:46]} Nf6 {[%emt 0:00:09]} 7. Bg5 {[%emt 0:01:47]} Nbd7 {[%emt 0:01:16]} 8. e3 {[%emt 0:00:36]} O-O {[%emt 0:01:59]} 9. Bd3 {[%emt 0:07:21]} c6 {[%emt 0:01:00]} 10. O-O {[%emt 0:01:51]} Re8 {[%emt 0:03:28]} 11. Qc2 {[%emt 0:09:33]} Nf8 {[%emt 0:12:11]} 12. Ne5 {[%emt 0:06:23]} N6d7 {[%emt 0:03:27]} 13. Bxe7 {[%emt 0:05:39]} Qxe7 {[%emt 0:00:21]} 14. f4 {[%emt 0:02:06]} f6 $16 {[%emt 0:13:27]} 15. Nf3 {[%emt 0:03:29]} dxc4 {[%emt 0:13:09]} 16. Bxc4 {[%emt 0:01:04]} b5 {[%emt 0:00:03]} 17. Bb3 {[%emt 0:07:17]} Kh8 {[%emt 0:04:17]} 18. Ne4 {[%emt 0:08:39]} Bb7 {[%emt 0:04:45]} 19. Rac1 {[%emt 0:06:37]} Rad8 {[%emt 0:03:00]} 20. Qc3 {[%emt 0:04:56]} a4 {[%emt 0:04:39]} 21. Ba2 {[%emt 0:00:55]} Nb6 {[%emt 0:02:20]} 22. Nc5 {[%emt 0:01:46]} Bc8 {[%emt 0:01:05]} 23. e4 {[%emt 0:04:26]} Ng6 {[%emt 0:14:39]} 24. Qe3 e5 25. dxe5 {[%emt 0:04:54]} fxe5 {[%emt 0:01:38]} 26. f5 {[%emt 0:01:28]} Nh4 {[%emt 0:02:18]} 27. Ng5 {[%emt 0:02:22]} Nc4 {[%emt 0:01:26]} 28. Bxc4 {[%emt 0:02:11]} bxc4 {[%emt 0:00:02]} 29. g3 {[%emt 0:01:47]} Rd4 {[%emt 0:02:35]} 30. Nge6 {[%emt 0:05:31]} Bxe6 {[%emt 0:00:10]} 31. Nxe6 {[%emt 0:00:17]} Rd3 {[%emt 0:01:54]} 32. Qe2 {[%emt 0:00:42]} Qa7+ {[%emt 0:02:29]} 33. Kh1 {[%emt 0:00:59]} Nxf5 {[%emt 0:04:57]} 34. exf5 {[%emt 0:00:59]} Qa5 {[%emt 0:00:28]} 35. Rxc4 {[%emt 0:02:33]} Rd2 {[%emt 0:00:02]} 36. Qe4 {[%emt 0:00:17]} Rxb2 {[%emt 0:00:25]} 37. Qxc6 {[%emt 0:00:26]} Rg8 {[%emt 0:00:11]} 38. Rc2 {[%emt 0:00:30]} Rb6 {[%emt 0:00:29]} 39. Qe4 {[%emt 0:00:30]} Rb3 {[%emt 0:00:52]} 40. Rc5 {[%emt 0:00:34]} Qd2 {[%emt 0:00:35]} 41. Rc2 {[%emt 0:02:44]} Qa5 {[%emt 0:03:37]} 42. Ng5 {[%emt 0:02:24]} 1-0

[Event "SVK Extraliga 2019-20"]
[Site "Slovakia"]
[Date "2019.10.20"]
[Round "2.5"]
[White "Pacher, Milan"]
[Black "Maslik, Miroslav"]
[Result "1-0"]
[ECO "C10"]
[WhiteElo "2437"]
[BlackElo "2363"]
[Annotator "ChessBase"]
[PlyCount "59"]
[EventDate "2019.10.19"]
[EventType "team-tourn"]
[EventCountry "SVK"]
[SourceTitle "playchess.com"]
[Source "ChessBase"]
[SourceQuality "1"]
[WhiteTeam "Slovakia"]
[BlackTeam "Slovakia"]
[WhiteTeamCountry "SVK"]
[BlackTeamCountry "SVK"]
[TimeControl "40/5400+30:1800+30"]

1. e4 {[%emt 0:00:00]} e6 {[%emt 0:00:00]} 2. d4 {[%emt 0:00:00]} d5 {[%emt 0:00:00]} 3. Nc3 {[%emt 0:00:00]} Nc6 {[%emt 0:02:18]} 4. e5 {[%emt 0:00:47]} f6 {[%emt 0:00:36]} 5. Bb5 {[%emt 0:00:00]} Bd7 {[%emt 0:01:36]} 6. Nf3 {[%emt 0:00:06]} a6 {[%emt 0:01:29]} 7. Bxc6 {[%emt 0:00:41]} Bxc6 {[%emt 0:00:30]} 8. Bf4 {[%emt 0:02:37]} Qd7 {[%emt 0:04:35]} 9. h4 {[%emt 0:01:54]} h5 {[%emt 0:05:37]} 10. Qd3 {[%emt 0:02:56]} O-O-O {[%emt 0:02:26]} 11. O-O {[%emt 0:11:19]} Ne7 {[%emt 0:17:08]} 12. b4 {[%emt 0:02:08]} Nf5 {[%emt 0:02:21]} 13. Rfb1 {[%emt 0:01:31]} Bb5 {[%emt 0:11:27]} 14. Nxb5 {[%emt 0:00:07]} Qxb5 {[%emt 0:00:30]} 15. Qxb5 {[%emt 0:00:10]} axb5 {[%emt 0:00:00]} 16. a4 {[%emt 0:00:12]} bxa4 {[%emt 0:14:27]} 17. Rxa4 {[%emt 0:00:12]} Kd7 {[%emt 0:01:06]} 18. b5 {[%emt 0:02:02]} g5 {[%emt 0:05:44]} 19. hxg5 {[%emt 0:03:58]} fxg5 {[%emt 0:00:01]} 20. Bxg5 {[%emt 0:00:28]} Be7 {[%emt 0:00:19]} 21. Bxe7 {[%emt 0:02:37]} Kxe7 {[%emt 0:00:25]} 22. c4 {[%emt 0:00:24]} Ra8 {[%emt 0:12:03]} 23. Rba1 {[%emt 0:00:33]} Rxa4 {[%emt 0:00:05]} 24. Rxa4 {[%emt 0:00:03]} dxc4 {[%emt 0:00:35]} 25. Rxc4 {[%emt 0:00:02]} Kd7 {[%emt 0:00:39]} 26. Ng5 {[%emt 0:00:58]} Rd8 {[%emt 0:06:23]} 27. Ne4 {[%emt 0:04:27]} Kc8 {[%emt 0:01:18]} 28. b6 {[%emt 0:00:14]} Rxd4 {[%emt 0:08:10]} 29. Rxc7+ {[%emt 0:01:33]} Kd8 {[%emt 0:00:31]} 30. Nc5 {[%emt 0:00:22]} 1-0

[Event "SVK Extraliga 2019-20"]
[Site "Slovakia"]
[Date "2019.10.20"]
[Round "2.5"]
[White "Mikrut, Dariusz"]
[Black "Pniaczek, Marek"]
[Result "1/2-1/2"]
[ECO "A45"]
[WhiteElo "2384"]
[BlackElo "2118"]
[Annotator "ChessBase"]
[PlyCount "39"]
[EventDate "2019.10.19"]
[EventType "team-tourn"]
[EventCountry "SVK"]
[SourceTitle "playchess.com"]
[Source "ChessBase"]
[SourceQuality "1"]
[WhiteTeam "Prakovce"]
[TimeControl "40/5400+30:1800+30"]

1. d4 {[%emt 0:00:00]} Nf6 {[%emt 0:00:00]} 2. Bg5 {[%emt 0:00:00]} Ne4 {[%emt 0:00:16]} 3. Bf4 {[%emt 0:00:00]} d5 {[%emt 0:00:14]} 4. Nd2 {[%emt 0:01:30]} Bf5 {[%emt 0:02:17]} 5. e3 {[%emt 0:01:00]} Nxd2 {[%emt 0:02:15]} 6. Qxd2 {[%emt 0:00:07]} e6 {[%emt 0:01:20]} 7. Nf3 {[%emt 0:00:07]} Bd6 {[%emt 0:02:11]} 8. Bxd6 {[%emt 0:00:57]} Qxd6 {[%emt 0:00:13]} 9. c4 {[%emt 0:00:06]} c6 {[%emt 0:02:23]} 10. Nh4 {[%emt 0:02:33]} Be4 {[%emt 0:04:31]} 11. f3 {[%emt 0:08:13]} Bg6 {[%emt 0:00:03]} 12. Nxg6 {[%emt 0:00:11]} hxg6 {[%emt 0:00:04]} 13. f4 {[%emt 0:00:10]} Nd7 {[%emt 0:01:19]} 14. c5 {[%emt 0:02:51]} Qc7 {[%emt 0:02:06]} 15. b4 {[%emt 0:00:06]} b6 {[%emt 0:10:06]} 16. Rc1 {[%emt 0:04:51]} O-O {[%emt 0:15:22]} 17. Bd3 {[%emt 0:00:49]} a5 {[%emt 0:01:41]} 18. a3 {[%emt 0:01:07]} axb4 {[%emt 0:00:44]} 19. axb4 {[%emt 0:00:06]} b5 {[%emt 0:01:25]} 20. O-O {[%emt 0:11:11]} 1/2-1/2

[Event "SVK Extraliga 2019-20"]
[Site "Slovakia"]
[Date "2019.10.20"]
[Round "2.5"]
[White "Pcola, Pavol"]
[Black "Vass, Frantisek"]
[Result "1/2-1/2"]
[ECO "A11"]
[WhiteElo "2380"]
[BlackElo "2310"]
[Annotator "ChessBase"]
[PlyCount "31"]
[EventDate "2019.10.19"]
[EventType "team-tourn"]
[EventCountry "SVK"]
[SourceTitle "playchess.com"]
[Source "ChessBase"]
[SourceQuality "1"]
[WhiteTeam "Snina"]
[BlackTeam "Podhajska"]
[TimeControl "40/5400+30:1800+30"]

1. c4 {[%emt 0:00:00]} c6 {[%emt 0:00:00]} 2. Nf3 {[%emt 0:00:00]} d5 {[%emt 0:00:00]} 3. g3 {[%emt 0:00:00]} Nf6 {[%emt 0:00:16]} 4. Bg2 {[%emt 0:00:00]} g6 {[%emt 0:00:18]} 5. b3 {[%emt 0:05:24]} Bg7 {[%emt 0:00:13]} 6. Bb2 {[%emt 0:00:06]} O-O {[%emt 0:00:31]} 7. O-O {[%emt 0:00:06]} Nbd7 {[%emt 0:00:34]} 8. cxd5 {[%emt 0:01:06]} cxd5 {[%emt 0:00:20]} 9. d4 {[%emt 0:02:51]} Ne4 {[%emt 0:03:53]} 10. Nc3 {[%emt 0:03:10]} Ndf6 {[%emt 0:01:07]} 11. Rc1 {[%emt 0:00:54]} Bf5 {[%emt 0:01:14]} 12. h3 {[%emt 0:07:29]} Rc8 {[%emt 0:08:23]} 13. g4 {[%emt 0:01:18]} Nxc3 {[%emt 0:00:13]} 14. Rxc3 {[%emt 0:00:29]} Rxc3 {[%emt 0:03:27]} 15. Bxc3 {[%emt 0:00:07]} Be4 {[%emt 0:00:25]} 16. Qd2 {[%emt 0:06:24]} 1/2-1/2

[Event "SVK Extraliga 2019-20"]
[Site "Slovakia"]
[Date "2019.10.20"]
[Round "2.5"]
[White "Frindt, Kornel"]
[Black "Czebe, Attila"]
[Result "0-1"]
[ECO "A41"]
[WhiteElo "2196"]
[BlackElo "2358"]
[Annotator "ChessBase"]
[PlyCount "114"]
[EventDate "2019.10.19"]
[EventType "team-tourn"]
[EventCountry "SVK"]
[SourceTitle "playchess.com"]
[Source "ChessBase"]
[SourceQuality "1"]
[BlackTeam "Streda"]
[TimeControl "40/5400+30:1800+30"]

1. d4 {[%emt 0:00:00]} d6 {[%emt 0:00:00]} 2. Nf3 {[%emt 0:01:12]} g6 {[%emt 0:00:00]} 3. c4 {[%emt 0:00:34]} Bg7 {[%emt 0:00:04]} 4. Nc3 {[%emt 0:00:24]} e5 {[%emt 0:01:27]} 5. dxe5 {[%emt 0:08:22]} dxe5 {[%emt 0:00:18]} 6. Qxd8+ {[%emt 0:00:18]} Kxd8 {[%emt 0:00:04]} 7. e4 {[%emt 0:07:33]} f6 {[%emt 0:01:13]} 8. Be3 {[%emt 0:01:22]} Be6 {[%emt 0:00:21]} 9. O-O-O+ {[%emt 0:03:25]} Nd7 {[%emt 0:01:05]} 10. Be2 {[%emt 0:03:39]} Bh6 {[%emt 0:01:11]} 11. Bxh6 {[%emt 0:01:49]} Nxh6 {[%emt 0:00:06]} 12. Ne1 {[%emt 0:04:16]} c6 {[%emt 0:01:31]} 13. b3 {[%emt 0:02:01]} Kc7 {[%emt 0:02:13]} 14. Nd3 {[%emt 0:01:41]} Rhe8 {[%emt 0:06:45]} 15. Rd2 {[%emt 0:02:27]} Rad8 {[%emt 0:00:45]} 16. Rhd1 {[%emt 0:00:37]} Nf8 {[%emt 0:00:44]} 17. Nc5 {[%emt 0:01:09]} Rxd2 {[%emt 0:00:39]} 18. Rxd2 {[%emt 0:00:33]} Bc8 {[%emt 0:00:27]} 19. b4 {[%emt 0:02:20]} Ne6 {[%emt 0:00:10]} 20. Nxe6+ {[%emt 0:01:26]} Bxe6 {[%emt 0:00:03]} 21. c5 {[%emt 0:03:32]} Nf7 {[%emt 0:00:11]} 22. Kb2 {[%emt 0:02:28]} Rb8 {[%emt 0:06:00]} 23. a3 {[%emt 0:01:20]} b6 {[%emt 0:00:23]} 24. Na4 {[%emt 0:03:04]} Ng5 {[%emt 0:00:24]} 25. f3 {[%emt 0:01:23]} Bd7 {[%emt 0:01:28]} 26. cxb6+ {[%emt 0:07:02]} axb6 {[%emt 0:00:06]} 27. Bc4 {[%emt 0:01:05]} Be6 {[%emt 0:05:40]} 28. Be2 {[%emt 0:04:27]} Nf7 {[%emt 0:06:22]} 29. b5 {[%emt 0:05:56]} c5 {[%emt 0:01:01]} 30. Nc3 {[%emt 0:00:41]} Nd6 {[%emt 0:00:46]} 31. Nd5+ {[%emt 0:02:08]} Bxd5 {[%emt 0:00:03]} 32. Rxd5 {[%emt 0:00:36]} Ra8 {[%emt 0:08:24]} 33. Kb3 {[%emt 0:00:48]} Nb7 {[%emt 0:00:06]} 34. a4 {[%emt 0:01:26]} Nd8 {[%emt 0:00:04]} 35. Bd1 {[%emt 0:02:01]} Ne6 {[%emt 0:00:08]} 36. Rd2 {[%emt 0:01:07]} Nd4+ {[%emt 0:00:05]} 37. Kc4 {[%emt 0:01:32]} f5 {[%emt 0:10:20]} 38. Ra2 {[%emt 0:07:06]} Kd6 {[%emt 0:00:13]} 39. Ra1 {[%emt 0:02:35]} Kc7 {[%emt 0:03:28]} 40. Rb1 {[%emt 0:00:40]} Rd8 {[%emt 0:04:12]} 41. Kc3 {[%emt 0:32:55]} fxe4 {[%emt 0:31:38]} 42. fxe4 {[%emt 0:00:40]} Rf8 {[%emt 0:00:03]} 43. Rb2 {[%emt 0:07:43]} Rf1 {[%emt 0:00:42]} 44. Rd2 {[%emt 0:01:01]} Re1 {[%emt 0:00:45]} 45. Kd3 {[%emt 0:01:47]} Kd6 {[%emt 0:02:30]} 46. h4 {[%emt 0:00:00]} h6 {[%emt 0:00:00]} 47. h5 {[%emt 0:00:00]} gxh5 {[%emt 0:00:00]} 48. Bxh5 {[%emt 0:00:00]} Ra1 {[%emt 0:00:00]} 49. Bd1 {[%emt 0:00:00]} Rc1 {[%emt 0:00:00]} 50. Bg4 {[%emt 0:00:00]} c4+ {[%emt 0:00:00]} 51. Ke3 {[%emt 0:00:00]} Kc5 {[%emt 0:00:00]} 52. Ra2 {[%emt 0:01:00]} c3 {[%emt 0:00:00]} 53. a5 c2 54. Kd2 {[%emt 0:03:39]} Rg1 {[%emt 0:00:00]} 55. Rxc2+ {[%emt 0:01:51]} Nxc2 {[%emt 0:00:00]} 56. a6 {[%emt 0:00:35]} Rxg2+ {[%emt 0:00:00]} 57. Be2 {[%emt 0:00:20]} Nd4 {[%emt 0:00:00]} 0-1

[Event "SVK Extraliga 2019-20"]
[Site "Slovakia"]
[Date "2019.10.20"]
[Round "2.5"]
[White "Hros, Roman"]
[Black "Druska, Juraj"]
[Result "0-1"]
[ECO "B20"]
[WhiteElo "2196"]
[BlackElo "2472"]
[Annotator "ChessBase"]
[PlyCount "64"]
[EventDate "2019.10.19"]
[EventType "team-tourn"]
[EventCountry "SVK"]
[SourceTitle "playchess.com"]
[Source "ChessBase"]
[SourceQuality "1"]
[WhiteTeam "Liptovska"]
[BlackTeam "Prakovce"]
[TimeControl "40/5400+30:1800+30"]

1. e4 {[%emt 0:00:00]} c5 {[%emt 0:00:49]} 2. Be2 {[%emt 0:01:00]} Nc6 {[%emt 0:09:47]} 3. f4 {[%emt 0:02:46]} g6 {[%emt 0:01:48]} 4. Nf3 {[%emt 0:00:40]} Bg7 {[%emt 0:00:07]} 5. O-O {[%emt 0:06:15]} e6 {[%emt 0:03:13]} 6. c3 {[%emt 0:03:12]} Nge7 {[%emt 0:03:45]} 7. d3 {[%emt 0:01:07]} O-O {[%emt 0:28:36]} 8. Qe1 {[%emt 0:09:36]} b5 {[%emt 0:00:42]} 9. Be3 {[%emt 0:30:21]} d6 {[%emt 0:00:27]} 10. Qh4 {[%emt 0:05:58]} f5 {[%emt 0:00:24]} 11. Nbd2 {[%emt 0:00:22]} b4 {[%emt 0:06:38]} 12. Rac1 {[%emt 0:08:38]} bxc3 {[%emt 0:14:51]} 13. bxc3 {[%emt 0:00:01]} Rb8 {[%emt 0:00:09]} 14. Rc2 {[%emt 0:03:52]} Qd7 {[%emt 0:04:43]} 15. g4 {[%emt 0:03:28]} Ba6 {[%emt 0:01:16]} 16. Re1 {[%emt 0:03:46]} e5 {[%emt 0:05:58]} 17. fxe5 {[%emt 0:03:35]} Nxe5 {[%emt 0:05:20]} 18. Nxe5 {[%emt 0:00:54]} Bxe5 {[%emt 0:00:59]} 19. Nf3 {[%emt 0:05:28]} Bg7 {[%emt 0:02:13]} 20. gxf5 {[%emt 0:06:43]} gxf5 {[%emt 0:00:11]} 21. d4 {[%emt 0:00:37]} Bxe2 {[%emt 0:03:41]} 22. Rcxe2 {[%emt 0:00:13]} cxd4 {[%emt 0:00:32]} 23. Bxd4 {[%emt 0:00:54]} Ng6 {[%emt 0:00:46]} 24. Qg5 {[%emt 0:00:56]} fxe4 {[%emt 0:01:44]} 25. Qd5+ {[%emt 0:01:17]} Kh8 {[%emt 0:02:37]} 26. Ng5 {[%emt 0:00:44]} Nf4 {[%emt 0:00:15]} 27. Qxe4 {[%emt 0:00:15]} Qg4+ {[%emt 0:01:20]} 28. Kh1 {[%emt 0:00:39]} Qxg5 {[%emt 0:00:01]} 29. Rg1 {[%emt 0:00:08]} Qxg1+ {[%emt 0:00:32]} 30. Kxg1 {[%emt 0:00:32]} Nxe2+ {[%emt 0:00:11]} 31. Qxe2 {[%emt 0:00:19]} Bxd4+ {[%emt 0:00:13]} 32. cxd4 {[%emt 0:00:05]} Rg8+ {[%emt 0:00:11]} 0-1

[Event "SVK Extraliga 2019-20"]
[Site "Slovakia"]
[Date "2019.10.20"]
[Round "2.5"]
[White "Bochnicka, Vladimir"]
[Black "Piesik, Piotr"]
[Result "0-1"]
[ECO "B06"]
[WhiteElo "2087"]
[BlackElo "2407"]
[Annotator "NA"]
[PlyCount "126"]
[EventDate "2019.10.19"]
[EventType "team-tourn"]
[EventCountry "SVK"]
[SourceTitle "playchess.com"]
[Source "ChessBase"]
[SourceQuality "1"]
[WhiteTeam "Modra"]
[BlackTeam "Dubnica"]
[TimeControl "40/5400+30:1800+30"]

1. e4 {[%emt 0:00:15]} g6 {[%emt 0:00:06]} 2. d4 {[%emt 0:00:06]} Bg7 {[%emt 0:00:04]} 3. Nf3 {[%emt 0:00:07]} d6 {[%emt 0:04:04]} 4. Bc4 {[%emt 0:00:25]} Nf6 {[%emt 0:00:37]} 5. Qe2 {[%emt 0:00:12]} c6 {[%emt 0:06:16]} 6. Bb3 {[%emt 0:03:34]} O-O {[%emt 0:02:25]} 7. O-O {[%emt 0:00:10]} Bg4 {[%emt 0:10:02]} 8. Nbd2 {[%emt 0:01:02]} Nh5 {[%emt 0:11:48] B06: Modern Defence} (8... e5 9. dxe5 dxe5 10. h3 Bxf3 11. Nxf3 Nbd7 12. c3 Qe7 13. Bc2 a5 14. a4 Nh5 15. g3 Nc5 16. Kg2 Rfe8 {1-0 (81) Indjic,A (2620)-Guseinov,G (2664) St Petersburg 2018}) 9. h3 {[%emt 0:04:28]} Bxf3 {[%emt 0:02:20]} 10. Nxf3 {[%emt 0:00:11]} e5 {[%emt 0:00:04]} 11. dxe5 $146 {[%emt 0:02:04]} ({Predecessor:} 11. Bg5 Qc7 12. Rad1 h6 13. Be3 Re8 14. dxe5 dxe5 15. Nh4 Kh7 16. Qf3 {1-0 (35) Gombac,J (2132)-Skoberne,J (1894) Slovenia 2002}) 11... dxe5 {[%emt 0:00:05]} 12. Rd1 {[%emt 0:00:41]} Qc7 {[%emt 0:02:57]} 13. Bg5 {[%emt 0:04:12]} Na6 {[%emt 0:02:07]} 14. Bc4 {[%emt 0:16:24]} b5 {[%emt 0:02:30]} 15. Bb3 {[%emt 0:00:37]} Nf4 {[%emt 0:10:00]} 16. Qf1 {[%emt 0:13:20]} Nc5 {[%emt 0:01:48]} 17. g3 {[%emt 0:00:44]} Nfe6 {[%emt 0:00:05]} 18. Qe1 {[%emt 0:19:45]} a5 {[%emt 0:05:57]} 19. Bxe6 {[%emt 0:02:17]} Nxe6 {[%emt 0:00:04]} 20. c3 {[%emt 0:00:57]} a4 {[%emt 0:02:25]} 21. Rd2 {[%emt 0:01:40]} Nxg5 {[%emt 0:07:21]} 22. Nxg5 {[%emt 0:00:02]} Bh6 {[%emt 0:00:08]} 23. h4 {[%emt 0:00:18]} Qe7 {[%emt 0:00:06]} 24. Rad1 {[%emt 0:01:39]} Bxg5 {[%emt 0:01:47]} 25. Rd7 {[%emt 0:00:29]} Qe6 {[%emt 0:00:04]} 26. hxg5 {[%emt 0:00:54]} Qxa2 {[%emt 0:00:06]} 27. R1d2 {[%emt 0:06:18]} a3 {[%emt 0:00:57]} 28. bxa3 {[%emt 0:00:44]} Qc4 {[%emt 0:06:49]} 29. Qe3 {[%emt 0:09:37]} Rxa3 $15 {[%emt 0:00:30]} 30. Rd8 {[%emt 0:01:57]} Ra1+ {[%emt 0:07:13]} 31. Kh2 {[%emt 0:00:08]} Ra8 {[%emt 0:01:44]} 32. Qb6 {[%emt 0:01:36]} Kg7 {[%emt 0:01:16]} 33. Rxa8 {[%emt 0:04:24]} Rxa8 {[%emt 0:00:06]} 34. Rd7 {[%emt 0:02:59]} Qxe4 {[%emt 0:03:37]} 35. Rxf7+ {[%emt 0:02:23]} Kxf7 {[%emt 0:00:01]} 36. Qb7+ {[%emt 0:00:11]} Ke6 {[%emt 0:00:03]} 37. Qxa8 {[%emt 0:00:11]} Qf3 {[%emt 0:01:01]} 38. Qg8+ {[%emt 0:01:17]} Qf7 {[%emt 0:04:38]} 39. Qc8+ {[%emt 0:00:26]} Qd7 {[%emt 0:00:50]} 40. Qg8+ {[%emt 0:00:36]} Kf5 {[%emt 0:02:31]} 41. Qh8 {[%emt 0:05:35]} Ke4 {[%emt 0:05:05]} 42. Qf6 {[%emt 0:01:09]} Qc7 {[%emt 0:00:21]} 43. Qe6 {[%emt 0:07:24]} Kf3 {[%emt 0:09:16]} 44. Kg1 {[%emt 0:05:49]} Ke2 {[%emt 0:10:35]} 45. Qa2+ {[%emt 0:00:30]} Kd3 {[%emt 0:00:06]} 46. Qb3 {[%emt 0:00:14]} Qb7 {[%emt 0:02:31]} 47. c4+ {[%emt 0:04:02]} Kd4 {[%emt 0:00:07]} 48. Qb4 {[%emt 0:09:07]} c5 {[%emt 0:01:37]} 49. Qb2+ {[%emt 0:00:33]} Kxc4 {[%emt 0:00:08]} 50. Qa2+ {[%emt 0:00:34]} Kd4 {[%emt 0:02:08]} 51. Qd2+ {[%emt 0:00:12]} Ke4 {[%emt 0:01:19]} 52. g4 {[%emt 0:00:35]} Kf3 {[%emt 0:01:45]} 53. Qe3+ {[%emt 0:00:49]} Kxg4 {[%emt 0:00:06]} 54. Qxc5 {[%emt 0:00:29]} Kf5 {[%emt 0:01:42]} 55. Qd6 {[%emt 0:00:30]} e4 {[%emt 0:01:24]} 56. Qf6+ {[%emt 0:00:24]} Kg4 {[%emt 0:00:01]} 57. Kg2 {[%emt 0:00:40]} b4 {[%emt 0:00:54]} 58. Qe5 {[%emt 0:00:32]} b3 {[%emt 0:00:31]} 59. Qe6+ {[%emt 0:00:28]} Kxg5 {[%emt 0:00:14]} 60. Qe5+ {[%emt 0:00:01]} Kh6 {[%emt 0:00:12]} 61. Qf6 {[%emt 0:01:00]} b2 {[%emt 0:01:24]} 62. Qf8+ {[%emt 0:00:20]} Kh5 {[%emt 0:00:06]} 63. Qc5+ {[%emt 0:00:31]} g5 {[%emt 0:00:07]} 0-1

[Event "SVK Extraliga 2019-20"]
[Site "Slovakia"]
[Date "2019.10.20"]
[Round "2.6"]
[White "Jurcik, Martin"]
[Black "Tropp, Oliver"]
[Result "1-0"]
[ECO "C05"]
[WhiteElo "2360"]
[BlackElo "2157"]
[Annotator "NA"]
[PlyCount "61"]
[EventDate "2019.10.19"]
[EventType "team-tourn"]
[EventCountry "SVK"]
[SourceTitle "playchess.com"]
[Source "ChessBase"]
[SourceQuality "1"]
[WhiteTeam "Dunajov"]
[BlackTeam "Liptovska"]
[TimeControl "40/5400+30:1800+30"]

1. e4 {[%emt 0:00:00]} e6 {[%emt 0:00:00]} 2. d4 {[%emt 0:00:12]} d5 {[%emt 0:00:00]} 3. Nd2 {[%emt 0:00:29]} Nf6 {[%emt 0:00:00]} 4. e5 {[%emt 0:00:37]} Nfd7 {[%emt 0:00:00]} 5. Bd3 {[%emt 0:00:52]} c5 {[%emt 0:00:00]} 6. c3 {[%emt 0:00:34]} b6 {[%emt 0:01:22]} 7. Ndf3 {[%emt 0:25:47]} Be7 {[%emt 0:01:17]} 8. Ne2 {[%emt 0:00:44]} Ba6 {[%emt 0:00:09]} 9. Bb1 {[%emt 0:00:44]} Nc6 {[%emt 0:02:19]} 10. O-O {[%emt 0:00:57] C06: French Tarrasch: 3...Nf6 4 e5 Nfd7 5 Bd3 main lines} g5 {[%emt 0:00:47]} (10... h6 11. Re1 g5 12. Be3 h5 13. Qa4 Bb7 14. Nd2 a6 15. f4 b5 16. Qd1 cxd4 17. cxd4 Qb6 {½-½ (46) Idani,P (2502)-Wang,Y (2415) Sharjah 2014}) 11. Be3 {[%emt 0:03:36]} g4 {[%emt 0:03:00]} 12. Ne1 {[%emt 0:01:12]} Bg5 $146 {[%emt 0:00:48]} ({Predecessor:} 12... Qc7 13. f4 h5 14. f5 O-O-O 15. Nd3 Rdg8 16. Qd2 h4 17. Bc2 h3 {1-0 (32) Yuldashev,S (2029)-Ahamed,H Udaipur 2000}) 13. Qd2 {[%emt 0:08:10]} Bxe3 {[%emt 0:03:48]} 14. Qxe3 {[%emt 0:00:07]} cxd4 {[%emt 0:01:09]} 15. cxd4 {[%emt 0:00:04]} Bxe2 {[%emt 0:13:00]} 16. Qxe2 {[%emt 0:00:16]} Qg5 {[%emt 0:00:03]} 17. f4 {[%emt 0:21:17]} gxf3 {[%emt 0:00:44]} 18. Nxf3 {[%emt 0:00:43]} Qf4 {[%emt 0:03:29]} 19. Qf2 {[%emt 0:00:11]} Rc8 {[%emt 0:05:56]} 20. g3 {[%emt 0:13:50]} Qg4 {[%emt 0:01:36]} 21. Bc2 {[%emt 0:02:40]} a6 {[%emt 0:02:41]} (21... O-O $16) 22. Rad1 {[%emt 0:02:08]} b5 {[%emt 0:08:19]} 23. Bb1 {[%emt 0:00:40]} O-O {[%emt 0:05:01]} 24. Qd2 $16 {[%emt 0:11:56]} Qg7 {[%emt 0:05:30]} 25. Ng5 {[%emt 0:01:58]} Nxd4 {[%emt 0:23:31]} 26. Nxh7 {[%emt 0:00:01]} Rc4 {[%emt 0:00:08]} 27. Nxf8 {[%emt 0:02:38]} Nxe5 {[%emt 0:00:06]} 28. Kh1 {[%emt 0:00:22]} Ndf3 {[%emt 0:04:04]} 29. Qe2 {[%emt 0:00:16]} Kxf8 {[%emt 0:02:10]} 30. Rxf3 {[%emt 0:01:15]} Qg4 {[%emt 0:00:53]} 31. Rf2 {[%emt 0:00:35]} 1-0